[Event "Early-Titled-Tuesday-Blitz-May-14-2024"]
[Site "Chess.com"]
[Date "2024.05.14"]
[Round "9"]
[White "RobertoJBM"]
[Black "MITerryble"]
[Result "1/2-1/2"]
[WhiteElo "2841"]
[BlackElo "3027"]
[TimeControl "180+1"]
[EndTime "9:47:50 PDT"]
[Termination "Game drawn by repetition"]

1. d4 {[%clk 0:03:00.9]} 1... e6 {[%clk 0:02:59.5]} 2. Nf3 {[%clk 0:03:01.1]}
2... Nf6 {[%clk 0:02:59.3]} 3. e3 {[%clk 0:03:01.1]} 3... b6 {[%clk 0:02:59]} 4.
Bd3 {[%clk 0:03:01.1]} 4... Bb7 {[%clk 0:02:59]} 5. Qe2 {[%clk 0:03:01.6]} 5...
c5 {[%clk 0:02:58.8]} 6. c3 {[%clk 0:03:01.5]} 6... d5 {[%clk 0:02:56.6]} 7.
Nbd2 {[%clk 0:03:00.2]} 7... Nc6 {[%clk 0:02:54.9]} 8. Ne5 {[%clk 0:02:58.3]}
8... Bd6 {[%clk 0:02:52.3]} 9. f4 {[%clk 0:02:57.5]} 9... Ne7 {[%clk 0:02:51.1]}
10. O-O {[%clk 0:02:56.8]} 10... O-O {[%clk 0:02:49.1]} 11. b3 {[%clk
0:02:49.1]} 11... Ne4 {[%clk 0:02:48.7]} 12. Bb2 {[%clk 0:02:48.5]} 12... f6
{[%clk 0:02:47.1]} 13. Nef3 {[%clk 0:02:47.6]} 13... Rc8 {[%clk 0:02:15.1]} 14.
Rac1 {[%clk 0:02:46.7]} 14... Qe8 {[%clk 0:02:04.1]} 15. c4 {[%clk 0:02:38.2]}
15... Qh5 {[%clk 0:02:01.5]} 16. Rc2 {[%clk 0:02:29.1]} 16... g5 {[%clk
0:01:44.2]} 17. fxg5 {[%clk 0:01:54.7]} 17... fxg5 {[%clk 0:01:44.2]} 18. Ne5
{[%clk 0:01:45.5]} 18... Qxe2 {[%clk 0:01:08.2]} 19. Bxe2 {[%clk 0:01:44.3]}
19... Nxd2 {[%clk 0:00:51.3]} 20. Rxd2 {[%clk 0:01:35.9]} 20... Rxf1+ {[%clk
0:00:50.3]} 21. Bxf1 {[%clk 0:01:24.6]} 21... Bxe5 {[%clk 0:00:47.2]} 22. dxe5
{[%clk 0:01:23.5]} 22... Nf5 {[%clk 0:00:38]} 23. cxd5 {[%clk 0:00:45.2]} 23...
Bxd5 {[%clk 0:00:38.9]} 24. Kf2 {[%clk 0:00:38.8]} 24... Rf8 {[%clk 0:00:37.8]}
25. Bd3 {[%clk 0:00:27]} 25... Nh4+ {[%clk 0:00:20.8]} 26. Kg3 {[%clk
0:00:27.3]} 26... h5 {[%clk 0:00:13.6]} 27. e4 {[%clk 0:00:24.1]} 27... Bb7
{[%clk 0:00:12.8]} 28. Rf2 {[%clk 0:00:22.5]} 28... Rd8 {[%clk 0:00:09.3]} 29.
Bc2 {[%clk 0:00:22.9]} 29... Ng6 {[%clk 0:00:05.7]} 30. Kf3 {[%clk 0:00:20.5]}
30... b5 {[%clk 0:00:02.4]} 31. Ke3 {[%clk 0:00:20.5]} 31... c4 {[%clk
0:00:02.8]} 32. bxc4 {[%clk 0:00:20.9]} 32... bxc4 {[%clk 0:00:03.7]} 33. Bd4
{[%clk 0:00:21.6]} 33... Rc8 {[%clk 0:00:01.4]} 34. g3 {[%clk 0:00:20.1]} 34...
Nf8 {[%clk 0:00:01.9]} 35. Rf6 {[%clk 0:00:19.6]} 35... a6 {[%clk 0:00:02.3]}
36. Kd2 {[%clk 0:00:18.9]} 36... Bc6 {[%clk 0:00:02.5]} 37. Kc3 {[%clk
0:00:19.1]} 37... Bb5 {[%clk 0:00:02.9]} 38. a4 {[%clk 0:00:17.7]} 38... Bd7
{[%clk 0:00:03.3]} 39. a5 {[%clk 0:00:17.2]} 39... Rb8 {[%clk 0:00:03.3]} 40.
Kxc4 {[%clk 0:00:14.3]} 40... Rc8+ {[%clk 0:00:03.8]} 41. Kd3 {[%clk 0:00:14.2]}
41... Bb5+ {[%clk 0:00:03.6]} 42. Kd2 {[%clk 0:00:14.8]} 42... Rd8 {[%clk
0:00:04.5]} 43. Ke3 {[%clk 0:00:14.8]} 43... Bc4 {[%clk 0:00:04.5]} 44. Bc5
{[%clk 0:00:14.7]} 44... Nd7 {[%clk 0:00:04.2]} 45. Be7 {[%clk 0:00:14.3]} 45...
Re8 {[%clk 0:00:03.5]} 46. Bd6 {[%clk 0:00:13.2]} 46... Nxf6 {[%clk 0:00:03.6]}
47. exf6 {[%clk 0:00:14.1]} 47... e5 {[%clk 0:00:03.9]} 48. Bd1 {[%clk
0:00:13.5]} 48... g4 {[%clk 0:00:03.6]} 49. Ba4 {[%clk 0:00:11.8]} 49... Re6
{[%clk 0:00:03.3]} 50. Be7 {[%clk 0:00:11.5]} 50... Bb5 {[%clk 0:00:03.5]} 51.
Bb3 {[%clk 0:00:11.7]} 51... Kf7 {[%clk 0:00:04.2]} 52. Bxe6+ {[%clk 0:00:11.4]}
52... Kxe6 {[%clk 0:00:05.1]} 53. Kd2 {[%clk 0:00:09.2]} 53... Bc6 {[%clk
0:00:05]} 54. Ke3 {[%clk 0:00:09.7]} 54... Bb7 {[%clk 0:00:05.5]} 55. Bd8 {[%clk
0:00:10.3]} 55... Bc6 {[%clk 0:00:05.9]} 56. Kd3 {[%clk 0:00:10.3]} 56... Bb7
{[%clk 0:00:06.3]} 57. Ke3 {[%clk 0:00:10.7]} 57... Bc6 {[%clk 0:00:06.8]} 58.
Kd3 {[%clk 0:00:08.2]} 58... Bb7 {[%clk 0:00:07.2]} 59. Ke3 {[%clk 0:00:08.2]}
1/2-1/2

[Event "Early-Titled-Tuesday-Blitz-May-14-2024"]
[Site "Chess.com"]
[Date "2024.05.14"]
[Round "9"]
[White "Mikasinski"]
[Black "lagunanivaria"]
[Result "1-0"]
[WhiteElo "2656"]
[BlackElo "2525"]
[TimeControl "180+1"]
[EndTime "9:47:50 PDT"]
[Termination "Mikasinski won by resignation"]

1. e4 {[%clk 0:03:00.9]} 1... e6 {[%clk 0:03:00.2]} 2. d4 {[%clk 0:03:00.8]}
2... d5 {[%clk 0:03:00.3]} 3. Nc3 {[%clk 0:03:01.4]} 3... Nf6 {[%clk 0:02:59.8]}
4. Bg5 {[%clk 0:03:00.9]} 4... Be7 {[%clk 0:02:56.7]} 5. e5 {[%clk 0:03:01.6]}
5... Nfd7 {[%clk 0:02:56.4]} 6. h4 {[%clk 0:03:02]} 6... a6 {[%clk 0:02:53.6]}
7. Qg4 {[%clk 0:02:57.6]} 7... Kf8 {[%clk 0:02:45.6]} 8. O-O-O {[%clk
0:02:55.5]} 8... h6 {[%clk 0:02:44.8]} 9. Bxe7+ {[%clk 0:02:48.5]} 9... Qxe7
{[%clk 0:02:45.7]} 10. Nf3 {[%clk 0:02:46.2]} 10... c5 {[%clk 0:02:42.8]} 11.
dxc5 {[%clk 0:02:43]} 11... Nc6 {[%clk 0:02:41.8]} 12. Qf4 {[%clk 0:02:41.3]}
12... Nxc5 {[%clk 0:02:37.4]} 13. Bd3 {[%clk 0:02:39.4]} 13... Nxd3+ {[%clk
0:02:34.1]} 14. Rxd3 {[%clk 0:02:39]} 14... Bd7 {[%clk 0:02:34.3]} 15. h5 {[%clk
0:02:33.9]} 15... Rc8 {[%clk 0:02:32.4]} 16. Nd4 {[%clk 0:02:30]} 16... Nxd4
{[%clk 0:02:29.5]} 17. Rxd4 {[%clk 0:02:29.5]} 17... b5 {[%clk 0:02:26.5]} 18.
Rhd1 {[%clk 0:02:19.9]} 18... Qg5 {[%clk 0:02:24.2]} 19. Qxg5 {[%clk 0:02:15.4]}
19... hxg5 {[%clk 0:02:25.1]} 20. g4 {[%clk 0:02:09.1]} 20... Rc4 {[%clk
0:02:21.2]} 21. Ne4 {[%clk 0:02:07]} 21... Ke7 {[%clk 0:02:02.3]} 22. Nxg5
{[%clk 0:02:02.6]} 22... Rhc8 {[%clk 0:02:00.7]} 23. Rxc4 {[%clk 0:02:00]} 23...
Rxc4 {[%clk 0:02:01.6]} 24. f3 {[%clk 0:01:55.6]} 24... Bc6 {[%clk 0:01:47.4]}
25. c3 {[%clk 0:01:53]} 25... b4 {[%clk 0:01:45.3]} 26. Kd2 {[%clk 0:01:48.5]}
26... Bb5 {[%clk 0:01:38.5]} 27. Rc1 {[%clk 0:01:43.7]} 27... f6 {[%clk
0:01:13.5]} 28. exf6+ {[%clk 0:01:40.7]} 28... gxf6 {[%clk 0:01:14.4]} 29. Nh3
{[%clk 0:01:41]} 29... f5 {[%clk 0:01:11.2]} 30. Nf2 {[%clk 0:01:19]} 30... fxg4
{[%clk 0:00:52.8]} 31. fxg4 {[%clk 0:01:16.6]} 31... Kf6 {[%clk 0:00:50.3]} 32.
b3 {[%clk 0:01:08.4]} 32... bxc3+ {[%clk 0:00:42.1]} 33. Rxc3 {[%clk 0:01:08.2]}
33... Rf4 {[%clk 0:00:42.7]} 34. Ke1 {[%clk 0:00:55.6]} 34... d4 {[%clk
0:00:37.1]} 35. Rc7 {[%clk 0:00:48.3]} 35... d3 {[%clk 0:00:30]} 36. a4 {[%clk
0:00:41.2]} 36... d2+ {[%clk 0:00:16.8]} 37. Kxd2 {[%clk 0:00:40.9]} 37... Rxf2+
{[%clk 0:00:17.7]} 38. Ke3 {[%clk 0:00:41.6]} 38... Re2+ {[%clk 0:00:17.6]} 39.
Kf3 {[%clk 0:00:42.2]} 39... Rb2 {[%clk 0:00:12.7]} 40. axb5 {[%clk 0:00:39]}
40... Rxb3+ {[%clk 0:00:13.1]} 41. Kf4 {[%clk 0:00:39.5]} 41... Rb4+ {[%clk
0:00:13.3]} 42. Kg3 {[%clk 0:00:39.9]} 42... Rxb5 {[%clk 0:00:13.4]} 43. Kh4
{[%clk 0:00:33.5]} 43... Rb1 {[%clk 0:00:13]} 44. g5+ {[%clk 0:00:31.2]} 44...
Ke5 {[%clk 0:00:11.9]} 45. h6 {[%clk 0:00:28.5]} 45... Rh1+ {[%clk 0:00:10.1]}
46. Kg4 {[%clk 0:00:28.4]} 46... a5 {[%clk 0:00:10.8]} 47. Rc5+ {[%clk
0:00:28.2]} 47... Kd6 {[%clk 0:00:10.6]} 48. Rxa5 {[%clk 0:00:28.7]} 48... Ke7
{[%clk 0:00:11.1]} 49. Ra7+ {[%clk 0:00:28]} 49... Kf8 {[%clk 0:00:10.6]} 50. h7
{[%clk 0:00:24.9]} 50... e5 {[%clk 0:00:05.8]} 51. Ra8+ {[%clk 0:00:24.9]} 51...
Kg7 {[%clk 0:00:06]} 52. g6 {[%clk 0:00:20.3]} 52... e4 {[%clk 0:00:04.6]} 53.
Rg8+ {[%clk 0:00:19.9]} 53... Kf6 {[%clk 0:00:01.1]} 54. h8=Q+ {[%clk
0:00:20.8]} 54... Ke6 {[%clk 0:00:01.1]} 55. Qxh1 {[%clk 0:00:20.6]} 55... e3
{[%clk 0:00:02]} 56. Qe4+ {[%clk 0:00:21]} 56... Kd6 {[%clk 0:00:02.5]} 57. Rd8+
{[%clk 0:00:21.4]} 57... Kc7 {[%clk 0:00:02.8]} 58. Qxe3 {[%clk 0:00:21.7]}
58... Kxd8 {[%clk 0:00:02.8]} 59. Qe6 {[%clk 0:00:21.8]} 59... Kc7 {[%clk
0:00:02.7]} 60. g7 {[%clk 0:00:22.5]} 60... Kb7 {[%clk 0:00:03.6]} 61. g8=Q
{[%clk 0:00:22.3]} 1-0

[Event "Early-Titled-Tuesday-Blitz-May-14-2024"]
[Site "Chess.com"]
[Date "2024.05.14"]
[Round "9"]
[White "C_K_G"]
[Black "Kushch_Nikolai"]
[Result "0-1"]
[WhiteElo "2286"]
[BlackElo "2419"]
[TimeControl "180+1"]
[EndTime "9:47:50 PDT"]
[Termination "Kushch_Nikolai won on time"]

1. e4 {[%clk 0:03:00.9]} 1... c5 {[%clk 0:02:59.6]} 2. Nf3 {[%clk 0:03:00.7]}
2... e6 {[%clk 0:02:59.8]} 3. d4 {[%clk 0:03:01]} 3... cxd4 {[%clk 0:03:00]} 4.
Nxd4 {[%clk 0:03:01.3]} 4... a6 {[%clk 0:03:00.4]} 5. Nc3 {[%clk 0:03:01.8]}
5... Qc7 {[%clk 0:02:59.1]} 6. Bd3 {[%clk 0:03:01.9]} 6... Nc6 {[%clk
0:02:58.2]} 7. Nde2 {[%clk 0:02:58.7]} 7... b5 {[%clk 0:02:54.9]} 8. a3 {[%clk
0:02:58.1]} 8... Bb7 {[%clk 0:02:54.8]} 9. O-O {[%clk 0:02:57.5]} 9... Nf6
{[%clk 0:02:55]} 10. h3 {[%clk 0:02:42.3]} 10... Be7 {[%clk 0:02:50.8]} 11. Be3
{[%clk 0:02:41.1]} 11... O-O {[%clk 0:02:46.7]} 12. f4 {[%clk 0:02:39.2]} 12...
d6 {[%clk 0:02:45.5]} 13. Ng3 {[%clk 0:02:30.9]} 13... Rac8 {[%clk 0:02:39.6]}
14. Nh5 {[%clk 0:02:27.6]} 14... Na5 {[%clk 0:02:34.9]} 15. Qf3 {[%clk
0:01:52.3]} 15... Nc4 {[%clk 0:02:30.4]} 16. Bd4 {[%clk 0:01:48.7]} 16... Nxh5
{[%clk 0:02:19.7]} 17. Qxh5 {[%clk 0:01:47.6]} 17... e5 {[%clk 0:02:15.7]} 18.
fxe5 {[%clk 0:01:38.9]} 18... dxe5 {[%clk 0:02:12.6]} 19. Bf2 {[%clk 0:01:28.7]}
19... Nxb2 {[%clk 0:02:04.1]} 20. Nd5 {[%clk 0:01:19.3]} 20... Bxd5 {[%clk
0:02:02.8]} 21. exd5 {[%clk 0:01:19.8]} 21... Nxd3 {[%clk 0:02:02.2]} 22. cxd3
{[%clk 0:01:20.7]} 22... Bc5 {[%clk 0:01:54.6]} 23. Kh1 {[%clk 0:01:14.3]} 23...
Bxf2 {[%clk 0:01:49.5]} 24. Rxf2 {[%clk 0:01:15.2]} 24... Qd6 {[%clk 0:01:45.3]}
25. Raf1 {[%clk 0:01:13.2]} 25... f6 {[%clk 0:01:44.7]} 26. Qg4 {[%clk
0:01:02.9]} 26... Rcd8 {[%clk 0:01:32.3]} 27. Rf3 {[%clk 0:00:57.7]} 27... Qxd5
{[%clk 0:01:20.5]} 28. Rxf6 {[%clk 0:00:53.8]} 28... Rxf6 {[%clk 0:01:20.4]} 29.
Rxf6 {[%clk 0:00:53.9]} 29... Qd7 {[%clk 0:01:15.4]} 30. Qg5 {[%clk 0:00:20.1]}
30... a5 {[%clk 0:01:11]} 31. Rf5 {[%clk 0:00:17]} 31... h6 {[%clk 0:00:41.6]}
32. Qg6 {[%clk 0:00:15.2]} 32... Qe8 {[%clk 0:00:41.9]} 33. Qg3 {[%clk
0:00:13.9]} 33... e4 {[%clk 0:00:26.4]} 34. dxe4 {[%clk 0:00:11.8]} 34... Qxe4
{[%clk 0:00:25.4]} 35. Rxb5 {[%clk 0:00:11.1]} 35... a4 {[%clk 0:00:22.6]} 36.
Rb4 {[%clk 0:00:10.5]} 36... Qc2 {[%clk 0:00:19]} 37. Qg4 {[%clk 0:00:05.7]}
37... Qd1+ {[%clk 0:00:18.1]} 38. Qxd1 {[%clk 0:00:03]} 38... Rxd1+ {[%clk
0:00:17.8]} 39. Kh2 {[%clk 0:00:03.9]} 39... Ra1 {[%clk 0:00:17.6]} 40. Rxa4
{[%clk 0:00:04.6]} 40... Kh7 {[%clk 0:00:17.9]} 41. Ra7 {[%clk 0:00:05]} 41...
h5 {[%clk 0:00:17.2]} 42. h4 {[%clk 0:00:04.4]} 42... Kh6 {[%clk 0:00:16]} 43.
Kg3 {[%clk 0:00:03.7]} 43... Ra2 {[%clk 0:00:15]} 44. Kf3 {[%clk 0:00:04]} 44...
Kg6 {[%clk 0:00:14.3]} 45. g3 {[%clk 0:00:03]} 45... Kf6 {[%clk 0:00:14.1]} 46.
Ke4 {[%clk 0:00:02.7]} 46... Rg2 {[%clk 0:00:12.1]} 47. Kf3 {[%clk 0:00:02]}
47... Ra2 {[%clk 0:00:11.8]} 48. Ra6+ {[%clk 0:00:02]} 48... Kf7 {[%clk
0:00:10.9]} 49. Kf4 {[%clk 0:00:01.4]} 49... Rg2 {[%clk 0:00:07.8]} 0-1

[Event "Early-Titled-Tuesday-Blitz-May-14-2024"]
[Site "Chess.com"]
[Date "2024.05.14"]
[Round "9"]
[White "Massakru"]
[Black "ChainedDowntohell"]
[Result "0-1"]
[WhiteElo "2416"]
[BlackElo "2586"]
[TimeControl "180+1"]
[EndTime "9:47:52 PDT"]
[Termination "ChainedDowntohell won by checkmate"]

1. e4 {[%clk 0:03:00.2]} 1... c5 {[%clk 0:03:00]} 2. c3 {[%clk 0:02:59.6]} 2...
Nf6 {[%clk 0:02:57.9]} 3. e5 {[%clk 0:03:00]} 3... Nd5 {[%clk 0:02:58]} 4. Bc4
{[%clk 0:02:59.8]} 4... e6 {[%clk 0:02:57]} 5. Nf3 {[%clk 0:02:59.6]} 5... Nc6
{[%clk 0:02:55.6]} 6. d4 {[%clk 0:02:59.3]} 6... cxd4 {[%clk 0:02:55.7]} 7. cxd4
{[%clk 0:03:00.2]} 7... d6 {[%clk 0:02:56.6]} 8. O-O {[%clk 0:02:59.9]} 8... Be7
{[%clk 0:02:54.9]} 9. Qe2 {[%clk 0:02:59.9]} 9... O-O {[%clk 0:02:54]} 10. Rd1
{[%clk 0:02:59.9]} 10... Qc7 {[%clk 0:02:50.2]} 11. Bd2 {[%clk 0:02:49.9]} 11...
Rd8 {[%clk 0:02:49.1]} 12. Nc3 {[%clk 0:02:49.1]} 12... Nxc3 {[%clk 0:02:49]}
13. Bxc3 {[%clk 0:02:49.3]} 13... dxe5 {[%clk 0:02:48.8]} 14. Nxe5 {[%clk
0:02:47.5]} 14... Bf6 {[%clk 0:02:47]} 15. Nxc6 {[%clk 0:02:39.3]} 15... Qxc6
{[%clk 0:02:44.7]} 16. d5 {[%clk 0:02:31.1]} 16... exd5 {[%clk 0:02:37.1]} 17.
Bxd5 {[%clk 0:02:30.4]} 17... Rxd5 {[%clk 0:02:03.4]} 18. Rxd5 {[%clk
0:02:26.7]} 18... Be6 {[%clk 0:02:02.8]} 19. Rdd1 {[%clk 0:02:10.3]} 19... Bxc3
{[%clk 0:01:59.4]} 20. bxc3 {[%clk 0:02:03.7]} 20... Qxc3 {[%clk 0:01:57.7]} 21.
Qb5 {[%clk 0:01:54.5]} 21... b6 {[%clk 0:01:53.6]} 22. Rac1 {[%clk 0:01:48.8]}
22... Qa3 {[%clk 0:01:51.6]} 23. Qc6 {[%clk 0:01:33.4]} 23... Rf8 {[%clk
0:01:51]} 24. Rc2 {[%clk 0:01:19.1]} 24... h6 {[%clk 0:01:49.8]} 25. h3 {[%clk
0:01:02.1]} 25... Qb4 {[%clk 0:01:35.3]} 26. Qf3 {[%clk 0:00:43.9]} 26... Qa4
{[%clk 0:01:28.3]} 27. Rcd2 {[%clk 0:00:41]} 27... Qb4 {[%clk 0:01:17.3]} 28. a3
{[%clk 0:00:36.1]} 28... Qe7 {[%clk 0:01:15.1]} 29. Rd6 {[%clk 0:00:31]} 29...
Qg5 {[%clk 0:01:12.6]} 30. R6d4 {[%clk 0:00:23.2]} 30... Qc5 {[%clk 0:01:10.7]}
31. Rd8 {[%clk 0:00:21.2]} 31... Rxd8 {[%clk 0:00:52.5]} 32. Rxd8+ {[%clk
0:00:20.5]} 32... Kh7 {[%clk 0:00:53.4]} 33. Qa8 {[%clk 0:00:08.6]} 33... a5
{[%clk 0:00:49.9]} 34. Rh8+ {[%clk 0:00:07.8]} 34... Kg6 {[%clk 0:00:49.5]} 35.
Qe4+ {[%clk 0:00:07.6]} 35... Bf5 {[%clk 0:00:49.7]} 36. Qe2 {[%clk 0:00:05.6]}
36... Qxa3 {[%clk 0:00:47.5]} 37. g4 {[%clk 0:00:05.3]} 37... Qc1+ {[%clk
0:00:43.6]} 38. Kg2 {[%clk 0:00:04.9]} 38... Qc6+ {[%clk 0:00:42.7]} 39. f3
{[%clk 0:00:05]} 39... Bc2 {[%clk 0:00:40.5]} 40. Re8 {[%clk 0:00:04.2]} 40...
a4 {[%clk 0:00:38]} 41. Re5 {[%clk 0:00:02.7]} 41... a3 {[%clk 0:00:34.9]} 42.
Re3 {[%clk 0:00:01.8]} 42... a2 {[%clk 0:00:32.1]} 43. Ra3 {[%clk 0:00:02.1]}
43... Bb1 {[%clk 0:00:32.1]} 44. Qd2 {[%clk 0:00:02.2]} 44... Kh7 {[%clk
0:00:28.8]} 45. Qb2 {[%clk 0:00:02.4]} 45... Qc5 {[%clk 0:00:25.4]} 46. Rxa2
{[%clk 0:00:02.5]} 46... Bxa2 {[%clk 0:00:24.1]} 47. Qxa2 {[%clk 0:00:03.4]}
47... Qd4 {[%clk 0:00:21.2]} 48. Qb1+ {[%clk 0:00:03.4]} 48... g6 {[%clk
0:00:21]} 49. Qb3 {[%clk 0:00:03.3]} 49... Kg7 {[%clk 0:00:21.1]} 50. Qb5 {[%clk
0:00:02.8]} 50... Qc5 {[%clk 0:00:21.2]} 51. Qd3 {[%clk 0:00:02.7]} 51... b5
{[%clk 0:00:20.7]} 52. h4 {[%clk 0:00:02.6]} 52... b4 {[%clk 0:00:20.9]} 53. Qb3
{[%clk 0:00:02.3]} 53... Qc3 {[%clk 0:00:20.6]} 54. Qd5 {[%clk 0:00:01.9]} 54...
b3 {[%clk 0:00:20.4]} 55. Qb7 {[%clk 0:00:02.2]} 55... b2 {[%clk 0:00:20.3]} 56.
Qb6 {[%clk 0:00:01.5]} 56... Qc2+ {[%clk 0:00:20.3]} 57. Kg3 {[%clk 0:00:01.6]}
57... b1=Q {[%clk 0:00:20.7]} 58. Qd4+ {[%clk 0:00:01.9]} 58... Kh7 {[%clk
0:00:21.1]} 59. Qf6 {[%clk 0:00:01.7]} 59... Qg1+ {[%clk 0:00:21.1]} 60. Kh3
{[%clk 0:00:01.5]} 60... Qcg2# {[%clk 0:00:20.9]} 0-1

[Event "Early-Titled-Tuesday-Blitz-May-14-2024"]
[Site "Chess.com"]
[Date "2024.05.14"]
[Round "9"]
[White "BilodeauA"]
[Black "GMG"]
[Result "0-1"]
[WhiteElo "2895"]
[BlackElo "2809"]
[TimeControl "180+1"]
[EndTime "9:47:53 PDT"]
[Termination "GMG won by resignation"]

1. e4 {[%clk 0:03:00.9]} 1... c5 {[%clk 0:02:58.6]} 2. Nf3 {[%clk 0:03:00.6]}
2... Nc6 {[%clk 0:02:59.2]} 3. Nc3 {[%clk 0:02:59.7]} 3... Nf6 {[%clk
0:02:58.5]} 4. Bb5 {[%clk 0:02:57.3]} 4... Qc7 {[%clk 0:02:58.1]} 5. Bxc6 {[%clk
0:02:55]} 5... Qxc6 {[%clk 0:02:49.3]} 6. O-O {[%clk 0:02:55.2]} 6... Nxe4
{[%clk 0:02:39.7]} 7. Nxe4 {[%clk 0:02:54.7]} 7... Qxe4 {[%clk 0:02:40.5]} 8. d4
{[%clk 0:02:53]} 8... e6 {[%clk 0:02:24.7]} 9. Re1 {[%clk 0:02:52.3]} 9... Qg6
{[%clk 0:02:09.5]} 10. Bf4 {[%clk 0:02:13.5]} 10... f6 {[%clk 0:01:58]} 11. c4
{[%clk 0:02:02.6]} 11... b6 {[%clk 0:01:43]} 12. d5 {[%clk 0:01:53.9]} 12... Be7
{[%clk 0:01:41.2]} 13. dxe6 {[%clk 0:01:35.6]} 13... dxe6 {[%clk 0:01:42.1]} 14.
Bd6 {[%clk 0:01:35.6]} 14... Qf7 {[%clk 0:01:28.8]} 15. Re3 {[%clk 0:01:29.4]}
15... O-O {[%clk 0:01:03.1]} 16. Bxe7 {[%clk 0:01:24.4]} 16... Qxe7 {[%clk
0:01:04]} 17. Qe2 {[%clk 0:01:20.3]} 17... e5 {[%clk 0:01:01.8]} 18. Re1 {[%clk
0:01:20.5]} 18... Bb7 {[%clk 0:01:00.9]} 19. b3 {[%clk 0:01:18.7]} 19... Rad8
{[%clk 0:00:59.8]} 20. Nd2 {[%clk 0:01:17.7]} 20... Qd7 {[%clk 0:00:58.6]} 21.
Nb1 {[%clk 0:01:17.3]} 21... h6 {[%clk 0:00:49.2]} 22. h3 {[%clk 0:01:17.7]}
22... Kh8 {[%clk 0:00:48.2]} 23. a4 {[%clk 0:01:17.4]} 23... Qf7 {[%clk
0:00:44.4]} 24. Nc3 {[%clk 0:01:17.2]} 24... Rd7 {[%clk 0:00:38.5]} 25. f3
{[%clk 0:00:51.6]} 25... Rfd8 {[%clk 0:00:37.4]} 26. Qf2 {[%clk 0:00:52.2]}
26... Qg6 {[%clk 0:00:33.7]} 27. R1e2 {[%clk 0:00:50.1]} 27... Rd3 {[%clk
0:00:32]} 28. Kh2 {[%clk 0:00:50.5]} 28... Rxe3 {[%clk 0:00:30.9]} 29. Rxe3
{[%clk 0:00:49.6]} 29... Qf5 {[%clk 0:00:28]} 30. Ne2 {[%clk 0:00:49.7]} 30...
Qc2 {[%clk 0:00:27.2]} 31. Qe1 {[%clk 0:00:40.5]} 31... Rd2 {[%clk 0:00:24.9]}
32. h4 {[%clk 0:00:29.7]} 32... Bc8 {[%clk 0:00:22.5]} 33. g4 {[%clk 0:00:28.5]}
33... Bb7 {[%clk 0:00:17.5]} 34. Kh3 {[%clk 0:00:27.5]} 34... Rd3 {[%clk
0:00:17.2]} 35. Ng3 {[%clk 0:00:20.1]} 35... Bxf3 {[%clk 0:00:14.5]} 36. Rxd3
{[%clk 0:00:20.6]} 36... Qxd3 {[%clk 0:00:14.5]} 37. g5 {[%clk 0:00:20.4]} 37...
Qd7+ {[%clk 0:00:11.7]} 38. Kh2 {[%clk 0:00:20.5]} 38... Qg4 {[%clk 0:00:12.3]}
39. gxf6 {[%clk 0:00:17.5]} 39... Qxh4+ {[%clk 0:00:12.1]} 40. Kg1 {[%clk
0:00:18.3]} 40... gxf6 {[%clk 0:00:12.5]} 41. Kf2 {[%clk 0:00:17.5]} 41... Qf4
{[%clk 0:00:11.5]} 42. Kg1 {[%clk 0:00:17.3]} 42... Qg4 {[%clk 0:00:10.9]} 43.
Kf2 {[%clk 0:00:17]} 43... Qf4 {[%clk 0:00:08.7]} 44. Kg1 {[%clk 0:00:17.2]}
44... Bg4 {[%clk 0:00:08.1]} 45. Kh2 {[%clk 0:00:16.8]} 45... h5 {[%clk
0:00:07.2]} 46. Kg1 {[%clk 0:00:15.4]} 46... h4 {[%clk 0:00:07.6]} 47. Nf1
{[%clk 0:00:16]} 47... Qg5 {[%clk 0:00:06.7]} 48. Kh2 {[%clk 0:00:16.1]} 48...
Kg7 {[%clk 0:00:06.6]} 49. Ne3 {[%clk 0:00:15.3]} 49... Qf4+ {[%clk 0:00:06.7]}
50. Kg1 {[%clk 0:00:16]} 50... Be6 {[%clk 0:00:06]} 51. Ng2 {[%clk 0:00:15.7]}
51... Qg3 {[%clk 0:00:05.8]} 52. Qf2 {[%clk 0:00:03.3]} 52... Qxf2+ {[%clk
0:00:05.3]} 53. Kxf2 {[%clk 0:00:04.2]} 53... h3 {[%clk 0:00:06]} 54. Ne3 {[%clk
0:00:04.7]} 54... f5 {[%clk 0:00:06.3]} 55. Nf1 {[%clk 0:00:04.4]} 55... f4
{[%clk 0:00:06.4]} 56. Nh2 {[%clk 0:00:05.3]} 56... Kf6 {[%clk 0:00:06.4]} 57.
Kf3 {[%clk 0:00:06.2]} 57... Bf5 {[%clk 0:00:06.3]} 58. Kf2 {[%clk 0:00:06.3]}
58... e4 {[%clk 0:00:06.2]} 59. Nf1 {[%clk 0:00:07.2]} 59... Ke5 {[%clk
0:00:06.5]} 60. Nh2 {[%clk 0:00:07.7]} 60... Kd4 {[%clk 0:00:06.6]} 0-1